[Event "*** Titled Tuesday Blitz"]
[Site "Chess.com"]
[Date "2021.04.20"]
[Round "1"]
[White "Kildepiotr"]
[Black "energie73"]
[Result "1-0"]
[WhiteElo "2654"]
[BlackElo "2351"]
[TimeControl "180+1"]
[EndTime "10:07:15 PDT"]
[Termination "Kildepiotr won by checkmate"]

1. Nf3 {[%clk 0:03:00.9]} 1... Nf6 {[%clk 0:02:59.1]} 2. g3 {[%clk 0:02:59.8]}
2... g6 {[%clk 0:02:58.3]} 3. Bg2 {[%clk 0:02:59.7]} 3... Bg7 {[%clk 0:02:59.2]}
4. O-O {[%clk 0:02:59.3]} 4... O-O {[%clk 0:03:00.1]} 5. d4 {[%clk 0:02:58.7]}
5... d6 {[%clk 0:03:00.3]} 6. Nbd2 {[%clk 0:02:58.5]} 6... Nc6 {[%clk
0:03:00.3]} 7. e4 {[%clk 0:02:58.1]} 7... e5 {[%clk 0:03:00.4]} 8. dxe5 {[%clk
0:02:59]} 8... Nxe5 {[%clk 0:02:59.4]} 9. Nxe5 {[%clk 0:02:59.2]} 9... dxe5
{[%clk 0:03:00.3]} 10. Qe2 {[%clk 0:02:59.7]} 10... Qe7 {[%clk 0:02:59.2]} 11.
b3 {[%clk 0:02:59.4]} 11... b6 {[%clk 0:02:58.2]} 12. a4 {[%clk 0:02:59.2]}
12... Re8 {[%clk 0:02:54]} 13. Bb2 {[%clk 0:02:59]} 13... a5 {[%clk 0:02:53.4]}
14. Rfd1 {[%clk 0:02:59.1]} 14... Ba6 {[%clk 0:02:53.5]} 15. Qe1 {[%clk
0:02:58]} 15... Nd7 {[%clk 0:02:49.8]} 16. Bf1 {[%clk 0:02:57.3]} 16... Bxf1
{[%clk 0:02:43]} 17. Kxf1 {[%clk 0:02:58.2]} 17... Nc5 {[%clk 0:02:36.7]} 18.
Nc4 {[%clk 0:02:57.2]} 18... f6 {[%clk 0:02:33.9]} 19. f3 {[%clk 0:02:55.5]}
19... Bf8 {[%clk 0:02:33.3]} 20. Rd5 {[%clk 0:02:52.4]} 20... Qe6 {[%clk
0:02:30.3]} 21. Kg2 {[%clk 0:02:44.2]} 21... Rad8 {[%clk 0:02:29.5]} 22. Rad1
{[%clk 0:02:43.5]} 22... Be7 {[%clk 0:02:27.9]} 23. Ba3 {[%clk 0:02:36]} 23...
Rxd5 {[%clk 0:02:21.5]} 24. Rxd5 {[%clk 0:02:35.1]} 24... Nb7 {[%clk 0:02:15.7]}
25. Bxe7 {[%clk 0:02:32.5]} 25... Qxe7 {[%clk 0:02:15.8]} 26. Qd2 {[%clk
0:02:27]} 26... Rd8 {[%clk 0:02:11.5]} 27. Ne3 {[%clk 0:02:25.2]} 27... Kf7
{[%clk 0:02:08]} 28. Qd3 {[%clk 0:02:20.1]} 28... c6 {[%clk 0:02:01]} 29. Rxd8
{[%clk 0:02:18.3]} 29... Nxd8 {[%clk 0:02:01.6]} 30. Nc4 {[%clk 0:02:16.9]}
30... Qc7 {[%clk 0:01:59.4]} 31. f4 {[%clk 0:02:00.6]} 31... exf4 {[%clk
0:01:58]} 32. gxf4 {[%clk 0:02:00.7]} 32... Ne6 {[%clk 0:01:54.8]} 33. Qd6
{[%clk 0:01:47.8]} 33... Nxf4+ {[%clk 0:01:51.7]} 34. Kf3 {[%clk 0:01:46.9]}
34... Qxd6 {[%clk 0:01:52]} 35. Nxd6+ {[%clk 0:01:46.9]} 35... Ke6 {[%clk
0:01:52.6]} 36. Nc4 {[%clk 0:01:45.9]} 36... b5 {[%clk 0:01:47.9]} 37. Nxa5
{[%clk 0:01:40.8]} 37... bxa4 {[%clk 0:01:47.6]} 38. Kxf4 {[%clk 0:01:34.8]}
38... a3 {[%clk 0:01:39.4]} 39. b4 {[%clk 0:01:34.3]} 39... a2 {[%clk 0:01:40]}
40. Nb3 {[%clk 0:01:34]} 40... g5+ {[%clk 0:01:40.9]} 41. Ke3 {[%clk 0:01:31.7]}
41... f5 {[%clk 0:01:41.1]} 42. exf5+ {[%clk 0:01:31.6]} 42... Kxf5 {[%clk
0:01:40.8]} 43. c4 {[%clk 0:01:31.1]} 43... Ke5 {[%clk 0:01:40.5]} 44. Kd3
{[%clk 0:01:23]} 44... h5 {[%clk 0:01:39.4]} 45. Kc3 {[%clk 0:01:08.4]} 45... g4
{[%clk 0:01:39.1]} 46. Kb2 {[%clk 0:01:08.1]} 46... h4 {[%clk 0:01:39.4]} 47.
Kxa2 {[%clk 0:01:00.4]} 47... Ke4 {[%clk 0:01:27.2]} 48. b5 {[%clk 0:00:55.7]}
48... cxb5 {[%clk 0:01:27]} 49. cxb5 {[%clk 0:00:56.6]} 49... Kd5 {[%clk
0:01:24.8]} 50. Ka3 {[%clk 0:00:54.3]} 50... g3 {[%clk 0:01:25.2]} 51. hxg3
{[%clk 0:00:47.7]} 51... h3 {[%clk 0:01:25.1]} 52. b6 {[%clk 0:00:43.8]} 52...
Kc6 {[%clk 0:01:18.2]} 53. Nd4+ {[%clk 0:00:43.5]} 53... Kxb6 {[%clk 0:01:18.8]}
54. Nf3 {[%clk 0:00:42.2]} 54... Kc5 {[%clk 0:01:19.4]} 55. Kb3 {[%clk
0:00:36.5]} 55... Kd5 {[%clk 0:01:19.7]} 56. Kc3 {[%clk 0:00:31.1]} 56... Ke4
{[%clk 0:01:20.1]} 57. Nh2 {[%clk 0:00:31]} 57... Ke3 {[%clk 0:01:20.6]} 58. g4
{[%clk 0:00:17.1]} 58... Kf4 {[%clk 0:01:20.7]} 59. Kd4 {[%clk 0:00:16.3]} 59...
Kg3 {[%clk 0:01:21]} 60. g5 {[%clk 0:00:16.9]} 60... Kxh2 {[%clk 0:01:21.5]} 61.
g6 {[%clk 0:00:17.8]} 61... Kh1 {[%clk 0:01:20.4]} 62. g7 {[%clk 0:00:17.9]}
62... h2 {[%clk 0:01:21.3]} 63. Ke3 {[%clk 0:00:14.7]} 63... Kg2 {[%clk
0:01:20.4]} 64. g8=Q+ {[%clk 0:00:14.8]} 64... Kh1 {[%clk 0:01:20.8]} 65. Qd5+
{[%clk 0:00:13.8]} 65... Kg1 {[%clk 0:01:20.9]} 66. Qd1+ {[%clk 0:00:13.8]}
66... Kg2 {[%clk 0:01:21.1]} 67. Qe2+ {[%clk 0:00:14]} 67... Kg1 {[%clk
0:01:19.7]} 68. Qf2+ {[%clk 0:00:12.4]} 68... Kh1 {[%clk 0:01:19.3]} 69. Qf1#
{[%clk 0:00:13.3]} 1-0

[Event "*** Titled Tuesday Blitz"]
[Site "Chess.com"]
[Date "2021.04.20"]
[Round "1"]
[White "RobertoJBM"]
[Black "The_filthy"]
[Result "0-1"]
[WhiteElo "2725"]
[BlackElo "2425"]
[TimeControl "180+1"]
[EndTime "10:07:16 PDT"]
[Termination "The_filthy won on time"]

1. d4 {[%clk 0:02:56.4]} 1... d5 {[%clk 0:02:59.9]} 2. e3 {[%clk 0:02:56.8]}
2... c6 {[%clk 0:03:00.4]} 3. Nf3 {[%clk 0:02:57.7]} 3... Nf6 {[%clk 0:03:00.6]}
4. Be2 {[%clk 0:02:37.9]} 4... Bg4 {[%clk 0:02:52.9]} 5. O-O {[%clk 0:02:38.8]}
5... e6 {[%clk 0:02:50.1]} 6. b3 {[%clk 0:02:29.9]} 6... Nbd7 {[%clk 0:02:47.4]}
7. c4 {[%clk 0:02:29.3]} 7... Bd6 {[%clk 0:02:45.1]} 8. Ba3 {[%clk 0:02:28.8]}
8... Bxa3 {[%clk 0:02:39.3]} 9. Nxa3 {[%clk 0:02:29.7]} 9... O-O {[%clk
0:02:39.2]} 10. Qc2 {[%clk 0:02:27.8]} 10... Qa5 {[%clk 0:02:34.9]} 11. Qb2
{[%clk 0:02:24.2]} 11... Ne4 {[%clk 0:02:32.4]} 12. Nb1 {[%clk 0:02:15.2]} 12...
f5 {[%clk 0:02:13.9]} 13. b4 {[%clk 0:02:12.6]} 13... Qc7 {[%clk 0:02:08.1]} 14.
Nc3 {[%clk 0:01:20.7]} 14... Rf6 {[%clk 0:01:58.1]} 15. Rac1 {[%clk 0:01:13.3]}
15... Qd6 {[%clk 0:01:41.8]} 16. b5 {[%clk 0:01:04.7]} 16... Rh6 {[%clk
0:01:39.2]} 17. g3 {[%clk 0:01:04.8]} 17... Rf8 {[%clk 0:01:28.6]} 18. Rfd1
{[%clk 0:01:01.4]} 18... Qe7 {[%clk 0:01:02.7]} 19. bxc6 {[%clk 0:00:57.7]}
19... bxc6 {[%clk 0:01:01.3]} 20. cxd5 {[%clk 0:00:57.9]} 20... exd5 {[%clk
0:00:53.3]} 21. h4 {[%clk 0:00:25.8]} 21... Re8 {[%clk 0:00:51.5]} 22. Rd3
{[%clk 0:00:23.5]} 22... g5 {[%clk 0:00:49.7]} 23. hxg5 {[%clk 0:00:22.4]} 23...
Nxg5 {[%clk 0:00:48.6]} 24. Nxg5 {[%clk 0:00:22.4]} 24... Qxg5 {[%clk
0:00:48.3]} 25. Bxg4 {[%clk 0:00:20]} 25... Qxg4 {[%clk 0:00:42.2]} 26. Qe2
{[%clk 0:00:17.5]} 26... Qh3 {[%clk 0:00:34.7]} 27. Qf3 {[%clk 0:00:17.6]} 27...
Qh2+ {[%clk 0:00:33.2]} 28. Kf1 {[%clk 0:00:17.7]} 28... Qh1+ {[%clk 0:00:33.5]}
29. Ke2 {[%clk 0:00:16.1]} 29... Qxc1 {[%clk 0:00:33.4]} 30. Qxf5 {[%clk
0:00:15.6]} 30... Nf6 {[%clk 0:00:21.8]} 31. Nd1 {[%clk 0:00:10.5]} 31... Qc2+
{[%clk 0:00:18.6]} 32. Kf1 {[%clk 0:00:09.1]} 32... Rf8 {[%clk 0:00:13.4]} 33.
Qe6+ {[%clk 0:00:05.7]} 33... Kh8 {[%clk 0:00:13.3]} 34. Qe7 {[%clk 0:00:02.5]}
34... Rg8 {[%clk 0:00:09.6]} 0-1

[Event "*** Titled Tuesday Blitz"]
[Site "Chess.com"]
[Date "2021.04.20"]
[Round "1"]
[White "northridgehawk"]
[Black "SirStrateg"]
[Result "0-1"]
[WhiteElo "2305"]
[BlackElo "2607"]
[TimeControl "180+1"]
[EndTime "10:07:17 PDT"]
[Termination "SirStrateg won by resignation"]

1. e4 {[%clk 0:03:00.1]} 1... d6 {[%clk 0:02:58.3]} 2. d3 {[%clk 0:03:00.2]}
2... Nf6 {[%clk 0:02:54.6]} 3. g3 {[%clk 0:02:59.9]} 3... g6 {[%clk 0:02:46.8]}
4. Bg2 {[%clk 0:02:59.8]} 4... Bg7 {[%clk 0:02:47.4]} 5. Nf3 {[%clk 0:02:58]}
5... O-O {[%clk 0:02:46.7]} 6. O-O {[%clk 0:02:58.4]} 6... c5 {[%clk 0:02:47.1]}
7. c3 {[%clk 0:02:57.9]} 7... Nc6 {[%clk 0:02:47.3]} 8. a4 {[%clk 0:02:57.4]}
8... a6 {[%clk 0:02:43.5]} 9. Na3 {[%clk 0:02:57.5]} 9... Rb8 {[%clk 0:02:42.5]}
10. Qe2 {[%clk 0:02:55]} 10... b5 {[%clk 0:02:36.2]} 11. axb5 {[%clk 0:02:54.4]}
11... axb5 {[%clk 0:02:37.1]} 12. Be3 {[%clk 0:02:52.7]} 12... b4 {[%clk
0:02:34.8]} 13. Nc4 {[%clk 0:02:51.2]} 13... Be6 {[%clk 0:02:21.5]} 14. Nfd2
{[%clk 0:02:49.9]} 14... bxc3 {[%clk 0:02:10.7]} 15. bxc3 {[%clk 0:02:50.8]}
15... Ng4 {[%clk 0:02:10.1]} 16. Rfc1 {[%clk 0:02:40.2]} 16... Nxe3 {[%clk
0:02:03.3]} 17. Nxe3 {[%clk 0:02:41.1]} 17... Qd7 {[%clk 0:01:39.1]} 18. Ndc4
{[%clk 0:02:28.5]} 18... Rb3 {[%clk 0:01:31.7]} 19. Ra3 {[%clk 0:02:11.6]} 19...
Rxa3 {[%clk 0:01:26.7]} 20. Nxa3 {[%clk 0:02:12.5]} 20... Rb8 {[%clk 0:01:23.1]}
21. f4 {[%clk 0:02:00.5]} 21... Qa7 {[%clk 0:01:11.7]} 22. Nac4 {[%clk
0:01:59.2]} 22... Na5 {[%clk 0:00:46.8]} 23. Nd2 {[%clk 0:01:53.9]} 23... Nb3
{[%clk 0:00:45.3]} 24. Rc2 {[%clk 0:01:40.5]} 24... Nxd2 {[%clk 0:00:42.1]} 25.
Qxd2 {[%clk 0:01:41.4]} 25... Rb1+ {[%clk 0:00:39.6]} 26. Kf2 {[%clk 0:01:39.1]}
26... Qa1 {[%clk 0:00:27.1]} 27. h3 {[%clk 0:01:34.7]} 27... h5 {[%clk 0:00:26]}
28. f5 {[%clk 0:01:09.4]} 28... Bb3 {[%clk 0:00:25.8]} 29. fxg6 {[%clk
0:01:03.6]} 29... fxg6 {[%clk 0:00:25.8]} 30. e5 {[%clk 0:00:57.9]} 30... Bxc2
{[%clk 0:00:24.5]} 31. Nxc2 {[%clk 0:00:55]} 31... Qb2 {[%clk 0:00:20.8]} 32.
Bd5+ {[%clk 0:00:53.1]} 32... Kh7 {[%clk 0:00:20.9]} 33. Kf3 {[%clk 0:00:51.8]}
33... Bxe5 {[%clk 0:00:19.9]} 34. d4 {[%clk 0:00:51.3]} 34... cxd4 {[%clk
0:00:19.8]} 35. Bf7 {[%clk 0:00:51.6]} 35... Qxc3+ {[%clk 0:00:19.1]} 36. Qxc3
{[%clk 0:00:52]} 36... dxc3 {[%clk 0:00:19.7]} 37. Ne3 {[%clk 0:00:52.4]} 37...
Kg7 {[%clk 0:00:17.6]} 38. Bc4 {[%clk 0:00:51.4]} 38... Rb2 {[%clk 0:00:16.8]}
39. g4 {[%clk 0:00:51.2]} 39... c2 {[%clk 0:00:17.1]} 40. Nxc2 {[%clk
0:00:50.1]} 40... Rxc2 {[%clk 0:00:17.5]} 41. Bd5 {[%clk 0:00:50.6]} 41... Rc3+
{[%clk 0:00:17.8]} 42. Kg2 {[%clk 0:00:50.7]} 42... h4 {[%clk 0:00:18.2]} 43.
Bf3 {[%clk 0:00:50.2]} 43... g5 {[%clk 0:00:17.6]} 44. Kf2 {[%clk 0:00:49.6]}
44... Bg3+ {[%clk 0:00:18]} 45. Ke2 {[%clk 0:00:50]} 45... Kf6 {[%clk
0:00:18.9]} 46. Be4 {[%clk 0:00:49.3]} 46... Bf4 {[%clk 0:00:18.6]} 47. Bd3
{[%clk 0:00:49.6]} 47... Ke5 {[%clk 0:00:18.1]} 48. Bf5 {[%clk 0:00:47.4]} 48...
Rxh3 {[%clk 0:00:17.2]} 49. Kf2 {[%clk 0:00:47.8]} 49... Rg3 {[%clk 0:00:17.6]}
50. Ke2 {[%clk 0:00:48.3]} 50... d5 {[%clk 0:00:18]} 51. Kf1 {[%clk 0:00:47.8]}
51... h3 {[%clk 0:00:18.6]} 52. Be4 {[%clk 0:00:47.9]} 52... dxe4 {[%clk
0:00:18.2]} 0-1

[Event "*** Titled Tuesday Blitz"]
[Site "Chess.com"]
[Date "2021.04.20"]
[Round "1"]
[White "Bad_left_hook"]
[Black "Ladislav1969"]
[Result "1-0"]
[WhiteElo "2627"]
[BlackElo "2324"]
[TimeControl "180+1"]
[EndTime "10:07:18 PDT"]
[Termination "Bad_left_hook won by resignation"]

1. d4 {[%clk 0:02:57]} 1... Nf6 {[%clk 0:02:59.4]} 2. Nf3 {[%clk 0:02:56.3]}
2... g6 {[%clk 0:02:59.8]} 3. c4 {[%clk 0:02:56.5]} 3... Bg7 {[%clk 0:03:00]} 4.
Nc3 {[%clk 0:02:57.1]} 4... d5 {[%clk 0:03:00]} 5. cxd5 {[%clk 0:02:56.4]} 5...
Nxd5 {[%clk 0:02:59.7]} 6. e4 {[%clk 0:02:57]} 6... Nxc3 {[%clk 0:03:00.4]} 7.
bxc3 {[%clk 0:02:57.8]} 7... c5 {[%clk 0:03:01]} 8. Be2 {[%clk 0:02:57.7]} 8...
Bg4 {[%clk 0:03:00.5]} 9. Be3 {[%clk 0:02:50.6]} 9... Nc6 {[%clk 0:02:59.8]} 10.
Rb1 {[%clk 0:02:39.3]} 10... Bxf3 {[%clk 0:02:51.2]} 11. gxf3 {[%clk 0:02:38.2]}
11... cxd4 {[%clk 0:02:38.6]} 12. cxd4 {[%clk 0:02:38.1]} 12... Bxd4 {[%clk
0:02:37.7]} 13. Rxb7 {[%clk 0:02:05.3]} 13... Bc3+ {[%clk 0:02:22.5]} 14. Kf1
{[%clk 0:01:59.8]} 14... Qc8 {[%clk 0:02:12.2]} 15. Qb3 {[%clk 0:01:17.8]} 15...
Bg7 {[%clk 0:01:32.1]} 16. Kg2 {[%clk 0:01:06.4]} 16... O-O {[%clk 0:01:24.3]}
17. Rc1 {[%clk 0:01:03.8]} 17... Qe8 {[%clk 0:00:51.2]} 18. Bb5 {[%clk
0:00:49.5]} 18... Na5 {[%clk 0:00:42.9]} 19. Bxe8 {[%clk 0:00:42.4]} 19... Nxb3
{[%clk 0:00:42.2]} 20. axb3 {[%clk 0:00:41.5]} 20... Rfxe8 {[%clk 0:00:41.4]}
21. Rcc7 {[%clk 0:00:40.8]} 21... Rab8 {[%clk 0:00:38.5]} 22. Bxa7 {[%clk
0:00:36.4]} 22... Rxb7 {[%clk 0:00:38.6]} 23. Rxb7 {[%clk 0:00:37.3]} 23... e6
{[%clk 0:00:38.2]} 24. b4 {[%clk 0:00:35]} 24... Bf8 {[%clk 0:00:34.4]} 25. b5
{[%clk 0:00:32.7]} 25... Rc8 {[%clk 0:00:34.2]} 26. Be3 {[%clk 0:00:31.9]} 26...
Bc5 {[%clk 0:00:33.6]} 27. Bh6 {[%clk 0:00:18.9]} 27... Bd4 {[%clk 0:00:29.2]}
28. f4 {[%clk 0:00:17.2]} 28... f6 {[%clk 0:00:26.1]} 29. b6 {[%clk 0:00:14.6]}
29... Rc2 {[%clk 0:00:23.6]} 30. Rg7+ {[%clk 0:00:14.1]} 30... Kh8 {[%clk
0:00:23.2]} 31. b7 {[%clk 0:00:14]} 31... Rxf2+ {[%clk 0:00:21.6]} 32. Kg3
{[%clk 0:00:11.9]} 32... Rb2 {[%clk 0:00:20.5]} 33. Rf7 {[%clk 0:00:12.2]} 33...
Bc5 {[%clk 0:00:18.2]} 34. Rc7 {[%clk 0:00:08.4]} 34... Bf2+ {[%clk 0:00:16.9]}
35. Kf3 {[%clk 0:00:08.1]} 35... Kg8 {[%clk 0:00:17.1]} 36. Rc8+ {[%clk
0:00:07.5]} 36... Kf7 {[%clk 0:00:17.4]} 37. b8=Q {[%clk 0:00:08.4]} 37... Rxb8
{[%clk 0:00:13.8]} 38. Rxb8 {[%clk 0:00:09.3]} 38... Ba7 {[%clk 0:00:13.9]} 39.
Rb7+ {[%clk 0:00:09.5]} 1-0

[Event "*** Titled Tuesday Blitz"]
[Site "Chess.com"]
[Date "2021.04.20"]
[Round "1"]
[White "leopato"]
[Black "JAAC2002"]
[Result "0-1"]
[WhiteElo "2121"]
[BlackElo "2505"]
[TimeControl "180+1"]
[EndTime "10:07:20 PDT"]
[Termination "JAAC2002 won on time"]

1. e4 {[%clk 0:02:55.1]} 1... e6 {[%clk 0:02:59.4]} 2. d3 {[%clk 0:02:52.5]}
2... d5 {[%clk 0:02:59.3]} 3. Nd2 {[%clk 0:02:48.8]} 3... c5 {[%clk 0:02:59.2]}
4. Ngf3 {[%clk 0:02:48.4]} 4... Nc6 {[%clk 0:02:59.4]} 5. g3 {[%clk 0:02:47.8]}
5... Bd6 {[%clk 0:02:59.6]} 6. Bg2 {[%clk 0:02:44.3]} 6... Nge7 {[%clk
0:02:59.9]} 7. O-O {[%clk 0:02:44.5]} 7... O-O {[%clk 0:03:00]} 8. c3 {[%clk
0:02:43.3]} 8... d4 {[%clk 0:02:59.9]} 9. cxd4 {[%clk 0:02:34.5]} 9... cxd4
{[%clk 0:03:00.8]} 10. a3 {[%clk 0:02:32.2]} 10... f6 {[%clk 0:02:59.4]} 11. b4
{[%clk 0:02:19.7]} 11... e5 {[%clk 0:02:58.5]} 12. Bb2 {[%clk 0:02:11.5]} 12...
Be6 {[%clk 0:02:57.5]} 13. Rc1 {[%clk 0:02:09.9]} 13... Qd7 {[%clk 0:02:56]} 14.
Nc4 {[%clk 0:01:47.8]} 14... Rfc8 {[%clk 0:02:52.8]} 15. Nfd2 {[%clk 0:01:36.9]}
15... Bc7 {[%clk 0:02:49.6]} 16. f4 {[%clk 0:01:32.7]} 16... b5 {[%clk
0:02:46.7]} 17. Na5 {[%clk 0:01:18.8]} 17... Nxa5 {[%clk 0:02:46.3]} 18. bxa5
{[%clk 0:01:19.4]} 18... Bxa5 {[%clk 0:02:47.2]} 19. fxe5 {[%clk 0:01:06.3]}
19... fxe5 {[%clk 0:02:47]} 20. Nf3 {[%clk 0:01:02.3]} 20... Ng6 {[%clk
0:02:30.7]} 21. Ng5 {[%clk 0:00:56.4]} 21... Rxc1 {[%clk 0:01:24.2]} 22. Bxc1
{[%clk 0:00:48.1]} 22... h6 {[%clk 0:01:17.2]} 23. Nxe6 {[%clk 0:00:39.3]} 23...
Qxe6 {[%clk 0:01:18.1]} 24. Qh5 {[%clk 0:00:34.1]} 24... Rf8 {[%clk 0:01:18.1]}
25. Rf5 {[%clk 0:00:30]} 25... Ne7 {[%clk 0:00:57.9]} 26. Rxf8+ {[%clk
0:00:20.1]} 26... Kxf8 {[%clk 0:00:56.4]} 27. Bh3 {[%clk 0:00:21]} 27... Qc6
{[%clk 0:00:45.7]} 28. Bb2 {[%clk 0:00:10.5]} 28... Bc3 {[%clk 0:00:45.8]} 29.
Bxc3 {[%clk 0:00:07.9]} 29... dxc3 {[%clk 0:00:46.7]} 30. Qxe5 {[%clk
0:00:07.4]} 30... c2 {[%clk 0:00:32.5]} 31. Qf4+ {[%clk 0:00:07.1]} 31... Kg8
{[%clk 0:00:27.1]} 32. Qc1 {[%clk 0:00:08]} 32... a5 {[%clk 0:00:22.1]} 33. d4
{[%clk 0:00:05.6]} 33... b4 {[%clk 0:00:20.8]} 34. axb4 {[%clk 0:00:04.8]} 34...
axb4 {[%clk 0:00:21.7]} 35. Bg2 {[%clk 0:00:01.4]} 35... b3 {[%clk 0:00:19.6]}
36. e5 {[%clk 0:00:02.3]} 36... Qc3 {[%clk 0:00:19]} 0-1

[Event "*** Titled Tuesday Blitz"]
[Site "Chess.com"]
[Date "2021.04.20"]
[Round "1"]
[White "Grandelicious"]
[Black "alejogarcia1999"]
[Result "0-1"]
[WhiteElo "2814"]
[BlackElo "2461"]
[TimeControl "180+1"]
[EndTime "10:07:25 PDT"]
[Termination "alejogarcia1999 won by resignation"]

1. d4 {[%clk 0:02:58.8]} 1... Nf6 {[%clk 0:02:59.5]} 2. c4 {[%clk 0:02:58.9]}
2... g6 {[%clk 0:03:00]} 3. Bg5 {[%clk 0:02:55.8]} 3... Bg7 {[%clk 0:03:00.3]}
4. Nc3 {[%clk 0:02:54.6]} 4... h6 {[%clk 0:03:00.2]} 5. Bh4 {[%clk 0:02:54.1]}
5... O-O {[%clk 0:03:00]} 6. e3 {[%clk 0:02:54.3]} 6... d6 {[%clk 0:02:59.9]} 7.
Be2 {[%clk 0:02:49.9]} 7... Nbd7 {[%clk 0:02:58.8]} 8. Nf3 {[%clk 0:02:50]} 8...
e5 {[%clk 0:02:57.5]} 9. h3 {[%clk 0:02:48.1]} 9... Re8 {[%clk 0:02:55.9]} 10.
O-O {[%clk 0:02:47.8]} 10... b6 {[%clk 0:02:38]} 11. Qc2 {[%clk 0:02:41]} 11...
Bb7 {[%clk 0:02:37.4]} 12. Rad1 {[%clk 0:02:41.4]} 12... exd4 {[%clk 0:02:33.8]}
13. Nxd4 {[%clk 0:02:31.7]} 13... Nc5 {[%clk 0:02:13]} 14. Qc1 {[%clk
0:01:43.9]} 14... Qd7 {[%clk 0:01:57.3]} 15. Bg3 {[%clk 0:01:38.8]} 15... a5
{[%clk 0:01:54.5]} 16. Ndb5 {[%clk 0:01:37.6]} 16... Nfe4 {[%clk 0:01:49.2]} 17.
Nxe4 {[%clk 0:01:37.6]} 17... Nxe4 {[%clk 0:01:48.7]} 18. Bh2 {[%clk 0:01:36.7]}
18... Ng5 {[%clk 0:01:41.5]} 19. f3 {[%clk 0:01:13.2]} 19... Ne6 {[%clk
0:01:06.7]} 20. Bg3 {[%clk 0:01:10.7]} 20... Qe7 {[%clk 0:01:06]} 21. Bf2 {[%clk
0:01:03.9]} 21... Qf6 {[%clk 0:01:04.4]} 22. b3 {[%clk 0:01:02.8]} 22... a4
{[%clk 0:01:02.9]} 23. b4 {[%clk 0:01:02.4]} 23... Qe7 {[%clk 0:00:52.9]} 24. a3
{[%clk 0:01:01.1]} 24... Bf6 {[%clk 0:00:45.7]} 25. Nc3 {[%clk 0:00:57.4]} 25...
Bh4 {[%clk 0:00:43.5]} 26. Nd5 {[%clk 0:00:56.5]} 26... Bxf2+ {[%clk 0:00:40.9]}
27. Rxf2 {[%clk 0:00:56.7]} 27... Qh4 {[%clk 0:00:36.9]} 28. Qc3 {[%clk
0:00:50.7]} 28... Bxd5 {[%clk 0:00:28.4]} 29. cxd5 {[%clk 0:00:51.6]} 29... Ng5
{[%clk 0:00:28.7]} 30. e4 {[%clk 0:00:38.8]} 30... Qg3 {[%clk 0:00:27.9]} 31.
Kf1 {[%clk 0:00:36.5]} 31... Nxe4 {[%clk 0:00:27.6]} 32. Qd4 {[%clk 0:00:31.8]}
32... Nxf2 {[%clk 0:00:26.2]} 33. Qxf2 {[%clk 0:00:32.7]} 33... Qxf2+ {[%clk
0:00:26.5]} 34. Kxf2 {[%clk 0:00:33.2]} 34... Re5 {[%clk 0:00:27]} 35. Bb5
{[%clk 0:00:32.9]} 35... f5 {[%clk 0:00:25.3]} 36. Rc1 {[%clk 0:00:32.2]} 36...
Ra7 {[%clk 0:00:25]} 37. Bc6 {[%clk 0:00:28.3]} 37... Kf8 {[%clk 0:00:24.4]} 38.
h4 {[%clk 0:00:27.9]} 38... Kg7 {[%clk 0:00:24]} 39. Rc4 {[%clk 0:00:27.6]}
39... Kf6 {[%clk 0:00:24]} 40. Rc1 {[%clk 0:00:27.4]} 40... g5 {[%clk
0:00:24.3]} 41. hxg5+ {[%clk 0:00:28.3]} 41... hxg5 {[%clk 0:00:25.2]} 42. Rh1
{[%clk 0:00:28.8]} 42... Kg7 {[%clk 0:00:25.6]} 43. Rh5 {[%clk 0:00:28.4]} 43...
f4 {[%clk 0:00:26]} 44. g3 {[%clk 0:00:24.4]} 44... fxg3+ {[%clk 0:00:24.4]} 45.
Kxg3 {[%clk 0:00:25.3]} 45... Kg6 {[%clk 0:00:24.4]} 46. Be8+ {[%clk 0:00:20.2]}
46... Rxe8 {[%clk 0:00:18.6]} 0-1

[Event "*** Titled Tuesday Blitz"]
[Site "Chess.com"]
[Date "2021.04.20"]
[Round "1"]
[White "GregShahade"]
[Black "AttractiveMustard"]
[Result "1-0"]
[WhiteElo "2714"]
[BlackElo "2392"]
[TimeControl "180+1"]
[EndTime "10:07:25 PDT"]
[Termination "GregShahade won on time"]

1. e4 {[%clk 0:03:00.9]} 1... c5 {[%clk 0:02:55.1]} 2. Nf3 {[%clk 0:03:00.2]}
2... Nc6 {[%clk 0:02:53.1]} 3. d4 {[%clk 0:02:55]} 3... cxd4 {[%clk 0:02:51.8]}
4. Nxd4 {[%clk 0:02:55.9]} 4... Nf6 {[%clk 0:02:50.2]} 5. Nc3 {[%clk 0:02:55.9]}
5... d6 {[%clk 0:02:44.8]} 6. f3 {[%clk 0:02:54.8]} 6... e5 {[%clk 0:01:55.6]}
7. Nb3 {[%clk 0:02:54.2]} 7... Be7 {[%clk 0:01:55.2]} 8. Be3 {[%clk 0:02:54.3]}
8... O-O {[%clk 0:01:54.6]} 9. Qd2 {[%clk 0:02:54.5]} 9... a5 {[%clk 0:01:55]}
10. Bb5 {[%clk 0:02:53.6]} 10... Be6 {[%clk 0:01:52.4]} 11. Rd1 {[%clk
0:02:52.7]} 11... Na7 {[%clk 0:01:50]} 12. Bd3 {[%clk 0:02:52.9]} 12... Nc6
{[%clk 0:01:47]} 13. a3 {[%clk 0:02:41.1]} 13... a4 {[%clk 0:01:36.1]} 14. Nc1
{[%clk 0:02:39.3]} 14... d5 {[%clk 0:01:33.7]} 15. exd5 {[%clk 0:02:39.2]} 15...
Nxd5 {[%clk 0:01:32.4]} 16. Nxd5 {[%clk 0:02:39.5]} 16... Qxd5 {[%clk
0:01:28.9]} 17. Bxh7+ {[%clk 0:02:38.3]} 17... Kxh7 {[%clk 0:01:25.2]} 18. Qxd5
{[%clk 0:02:36.9]} 18... Bxd5 {[%clk 0:01:25.4]} 19. Rxd5 {[%clk 0:02:37.8]}
19... Rfd8 {[%clk 0:01:20.4]} 20. Rxd8 {[%clk 0:02:17.3]} 20... Rxd8 {[%clk
0:01:17]} 21. Ke2 {[%clk 0:02:17.9]} 21... Na5 {[%clk 0:01:07.9]} 22. Nd3 {[%clk
0:02:17.1]} 22... Nc4 {[%clk 0:01:03]} 23. Bc1 {[%clk 0:02:16.4]} 23... Rd4
{[%clk 0:00:52.4]} 24. c3 {[%clk 0:01:51.9]} 24... Rd5 {[%clk 0:00:50.3]} 25.
Rd1 {[%clk 0:01:48.6]} 25... f5 {[%clk 0:00:46.2]} 26. Nf2 {[%clk 0:01:41.4]}
26... Rb5 {[%clk 0:00:41.5]} 27. Rd7 {[%clk 0:01:31]} 27... Bf6 {[%clk
0:00:40.7]} 28. Nd3 {[%clk 0:01:28.6]} 28... e4 {[%clk 0:00:40]} 29. fxe4 {[%clk
0:01:20.9]} 29... fxe4 {[%clk 0:00:40.9]} 30. Nb4 {[%clk 0:01:21.3]} 30... Kg6
{[%clk 0:00:41.5]} 31. g4 {[%clk 0:01:12.6]} 31... Bh4 {[%clk 0:00:26.7]} 32.
Rc7 {[%clk 0:00:46.3]} 32... Ne5 {[%clk 0:00:25.2]} 33. h3 {[%clk 0:00:41]}
33... Nf3 {[%clk 0:00:18.9]} 34. Be3 {[%clk 0:00:35.6]} 34... b6 {[%clk
0:00:12]} 35. c4 {[%clk 0:00:33.9]} 35... Re5 {[%clk 0:00:09.8]} 36. Rc6+ {[%clk
0:00:31]} 36... Kf7 {[%clk 0:00:09.3]} 37. Rxb6 {[%clk 0:00:31]} 37... Bf6
{[%clk 0:00:08.9]} 38. Nd5 {[%clk 0:00:28]} 38... Re8 {[%clk 0:00:03]} 39. Rb7+
{[%clk 0:00:25.5]} 39... Kg6 {[%clk 0:00:02.9]} 40. Rb4 {[%clk 0:00:19.1]} 1-0